fUST/lending_fUST_20240919
["ID","MTS","AMOUNT","RATE_DAILY","PERIOD"]
[338547334,1726728733789,-516.569669,0.0001999,2]
[338547335,1726728733798,-569.634961,0.0001999,2]
[338547336,1726728733807,-151.0,0.0001999,2]
[338547337,1726728733816,-569.63496008,0.0001999,2]
[338547338,1726728733826,-381.829477,0.0001999,2]
[338547339,1726728733838,-381.829485,0.0001999,2]
[338547340,1726728733848,-595.026518,0.0001999,2]
[338547341,1726728733857,-595.026518,0.0001999,2]
[338547342,1726728733867,-151.0,0.0001999,2]
[338547343,1726728733877,-785.413621,0.0001999,2]
[338547344,1726728733886,-1860.90069,0.0001999,2]
[338547345,1726728733896,-785.413622,0.0001999,2]
[338547346,1726728733905,-1860.90068,0.0001999,2]
[338547347,1726728733915,-3595.856578,0.0001999,2]
[338547348,1726728733924,-3595.856577,0.0001999,2]
[338547349,1726728733933,-377.674144,0.0001999,2]
[338547350,1726728733942,-377.674144,0.0001999,2]
[338547351,1726728733952,-214.490977,0.0001999,2]
[338547352,1726728733962,-727.848676,0.0001999,2]
[338547353,1726728733971,-727.848676,0.0001999,2]
[338547354,1726728733980,-1201.357016,0.0001999,2]
[338547355,1726728733990,-21184.81567008,0.0002,2]
[338547356,1726728733999,-350.0,0.0002,3]
[338547357,1726728734008,-873.68679289,0.0002,2]
[338547358,1726728734018,-1351.31,0.0002,2]
[338547359,1726728734030,-500.0,0.0002,2]
[338547360,1726728734039,-186.54539017,0.0002,2]
[338547361,1726728734050,-500.0,0.0002,2]
[338547362,1726728734061,-2528.93,0.0002,2]
[338547363,1726728734070,-500.0,0.0002,2]
[338547364,1726728734080,-53419.490371,0.0002,2]
[338547365,1726728734091,-10096.47084548,0.0002,2]
[338547366,1726728734100,-140011.55095134,0.0002,2]
[338547367,1726728734110,-348.29182819,0.0002,2]
[338547368,1726728734120,-250.0,0.0002,10]
[338547369,1726728734129,-476.6312919,0.0002,2]
[338547370,1726728734138,-985.13756857,0.0002,10]
[338547371,1726728734147,-187.93927353,0.0002,2]
[338547372,1726728734157,-2119.85939089,0.0002,2]
[338547397,1726729203613,500.0,0.0001,2]
[338547398,1726729204032,175.34541832,0.0001,2]
[338547405,1726729476829,5000.0,0.00014013,2]
[338547406,1726729485596,5000.0,0.00014013,2]
[338547407,1726729493419,5000.0,0.00014013,2]
[338547408,1726729501366,5000.0,0.00014013,2]
[338547409,1726729510589,5000.0,0.00014013,2]
[338547410,1726729518489,5000.0,0.00014013,2]
[338547411,1726729527145,5000.0,0.00014013,2]
[338547412,1726729531168,-780.39122847,0.00015348,2]
[338547413,1726729535943,5000.0,0.00014013,2]
[338547414,1726729544942,5000.0,0.00014013,2]
[338547415,1726729548111,-333.42121353,0.00015348,2]
[338547416,1726729548132,-594.02576284,0.00015804,2]
[338547417,1726729548417,-160.43222061,0.00015904,2]
[338547418,1726729548443,-300.0,0.00016004,2]
[338547419,1726729548467,-300.0,0.00016004,2]
[338547420,1726729548490,-2030.5649519,0.00016005,2]
[338547421,1726729553964,5000.0,0.00014013,2]
[338547422,1726729562788,5000.0,0.00014013,2]
[338547423,1726729570642,5000.0,0.00014013,2]
[338547424,1726729579914,5000.0,0.00014013,2]
[338547425,1726729588220,5000.0,0.00014013,2]
[338547426,1726729598161,5000.0,0.00014013,2]
[338547427,1726729606741,5000.0,0.00014013,2]
[338547428,1726729616051,5000.0,0.00014013,2]
[338547430,1726729626879,5000.0,0.00014013,2]
[338547431,1726729635005,5000.0,0.00014013,2]
[338547433,1726729643587,209.37990505,0.00014013,2]
[338547434,1726729652084,5000.0,0.00014013,2]
[338547435,1726729653100,-300.0,0.00016004,2]
[338547436,1726729653123,-138.4297159,0.00016004,2]
[338547437,1726729668620,5000.0,0.00014013,2]
[338547439,1726729684997,5000.0,0.00014013,2]
[338547440,1726729702367,5000.0,0.00014013,2]
[338547441,1726729718255,5000.0,0.00014013,2]
[338547442,1726729735672,5000.0,0.00014013,2]
[338547443,1726729745100,-166.7376595,0.00016254,2]
[338547444,1726729745123,-1489.05245263,0.00016438,10]
[338547445,1726729745149,-510.94754737,0.00016438,10]
[338547446,1726729745172,-1150.0,0.00016438,10]
[338547447,1726729745196,-160.712305,0.00016661,2]
[338547448,1726729745217,-554.6553846,0.00016669,2]
[338547449,1726729745240,-24900.0,0.00016675,2]
[338547450,1726729745261,-318.3363211,0.00016677,2]
[338547451,1726729745283,-160.712305,0.00016682,2]
[338547452,1726729745304,-160.712305,0.00016703,2]
[338547453,1726729745329,-160.712305,0.00016724,2]
[338547454,1726729745357,-160.712305,0.00016745,2]
[338547455,1726729745379,-747.654871,0.00016805,2]
[338547456,1726729751604,1276.73338907,0.00014013,2]
[338547457,1726729751630,156.90084278,0.00014013,2]
[338547458,1726729751657,3566.36576815,0.00014013,2]
[338547459,1726729767380,5000.0,0.00014013,2]
[338547460,1726729782799,2060.05123118,0.00014013,2]
[338547465,1726729827097,299.89996309,0.0002051,120]
[338547490,1726729831950,-166.047653,0.00017778,2]
[338547492,1726729831960,-500.0,0.00017808,2]
[338547494,1726729831970,-166.047653,0.00017862,2]
[338547496,1726729831979,-2436.32904725,0.000179,2]
[338547498,1726729831989,-166.047653,0.00017946,2]
[338547500,1726729831999,-1000.0,0.00018,9]
[338547502,1726729832008,-650.55435286,0.00018,2]
[338547504,1726729832018,-166.047653,0.0001803,2]
[338547506,1726729832028,-166.047653,0.00018114,2]
[338547508,1726729832038,-166.047653,0.00018199,2]
[338547510,1726729832047,-300.0,0.00018222,2]
[338547512,1726729832057,-300.0,0.00018222,2]
[338547514,1726729832066,-150.0,0.00018223,2]
[338547516,1726729832076,-524.0,0.00018223,2]
[338547518,1726729832085,-1216.0,0.00018223,2]
[338547520,1726729832094,-166.047653,0.00018283,2]
[338547522,1726729832103,-166.047653,0.00018367,2]
[338547524,1726729832113,-166.047653,0.00018451,2]
[338547526,1726729832124,-166.047653,0.00018535,2]
[338547528,1726729832133,-166.047653,0.0001862,2]
[338547529,1726729832143,-166.047653,0.00018704,2]
[338547531,1726729832152,-150.0,0.000188,2]
[338547533,1726729832162,-192.88214398,0.00018814,2]
[338547535,1726729832172,-2000.0,0.000189,3]
[338547537,1726729832182,-357.94168986,0.00018958,2]
[338547538,1726729832192,-1000.0,0.00019,19]
[338547539,1726729832202,-5744.4366574,0.00019002,2]
[338547540,1726729832212,-2000.0,0.00019178,10]
[338547541,1726729832222,-197.0,0.00019178,2]
[338547542,1726729832231,-197.0,0.00019178,2]
[338547543,1726729832241,-197.0,0.00019178,2]
[338547544,1726729832250,-197.0,0.00019178,2]
[338547545,1726729832259,-197.0,0.00019178,2]
[338547546,1726729832269,-197.0,0.00019178,2]
[338547547,1726729832278,-197.0,0.00019178,2]
[338547548,1726729832287,-197.0,0.00019178,2]
[338547550,1726729832296,-197.0,0.00019178,2]
[338547552,1726729832306,-197.0,0.00019178,2]
[338547554,1726729832316,-197.0,0.00019178,2]
[338547556,1726729832326,-197.0,0.00019178,2]
[338547558,1726729832335,-474.0,0.00019178,2]
[338547560,1726729832345,-474.0,0.00019178,2]
[338547562,1726729832356,-474.0,0.00019178,2]
[338547588,1726729832610,-474.0,0.00019178,2]
[338547590,1726729832619,-474.0,0.00019178,2]
[338547592,1726729832630,-474.0,0.00019178,2]
[338547594,1726729832640,-474.0,0.00019178,2]
[338547596,1726729832650,-474.0,0.00019178,2]
[338547598,1726729832659,-474.0,0.00019178,2]
[338547600,1726729832667,-474.0,0.00019178,2]
[338547602,1726729832677,-474.0,0.00019178,2]
[338547604,1726729832687,-474.0,0.00019178,2]
[338547606,1726729832696,-474.0,0.00019178,2]
[338547608,1726729832706,-197.0,0.00019178,2]
[338547610,1726729832715,-197.0,0.00019178,2]
[338547612,1726729832725,-197.0,0.00019178,2]
[338547614,1726729832734,-197.0,0.00019178,2]
[338547616,1726729832743,-197.0,0.00019178,2]
[338547618,1726729832753,-197.0,0.00019178,2]
[338547620,1726729832762,-197.0,0.00019178,2]
[338547622,1726729832771,-197.0,0.00019178,2]
[338547624,1726729832780,-197.0,0.00019178,2]
[338547626,1726729832789,-197.0,0.00019178,2]
[338547628,1726729832798,-197.0,0.00019178,2]
[338547630,1726729832807,-197.0,0.00019178,2]
[338547632,1726729832817,-197.0,0.00019178,2]
[338547634,1726729832826,-197.0,0.00019178,2]
[338547636,1726729832836,-474.0,0.00019178,2]
[338547638,1726729832846,-295.41503039,0.00019178,2]
[338547643,1726729832886,-178.58496961,0.00019178,2]
[338547645,1726729832895,-474.0,0.00019178,2]
[338547647,1726729832904,-474.0,0.00019178,2]
[338547649,1726729832914,-474.0,0.00019178,2]
[338547651,1726729832923,-474.0,0.00019178,2]
[338547653,1726729832933,-474.0,0.00019178,2]
[338547655,1726729832943,-474.0,0.00019178,2]
[338547658,1726729832954,-474.0,0.00019178,2]
[338547660,1726729832963,-474.0,0.00019178,2]
[338547662,1726729832974,-474.0,0.00019178,2]
[338547664,1726729832983,-474.0,0.00019178,2]
[338547666,1726729832993,-474.0,0.00019178,2]
[338547668,1726729833001,-474.0,0.00019178,2]
[338547670,1726729833011,-340.9059088,0.00019178,2]
[338548176,1726729838163,-5746.1150262,0.00019178,2]
[338548178,1726729838174,-174.68393,0.00019178,2]
[338548180,1726729838185,-971.68,0.000192,2]
[338548182,1726729838194,-1694.7932338,0.00019219,2]
[338548220,1726729838554,-4049.6434236,0.00019219,2]
[338548222,1726729838563,-1000.0,0.0001949,2]
[338548224,1726729838573,-724.86,0.00019533,3]
[338548226,1726729838582,-301.94729384,0.00019533,3]
[338548228,1726729838594,-133.00270616,0.00019533,3]
[338548230,1726729838603,-148.05640272,0.00019543,3]
[338548346,1726729839988,-502.5,0.00019543,3]
[338548349,1726729840000,-7217.88,0.00019543,3]
[338548353,1726729840011,-589.29,0.00019543,3]
[338548356,1726729840023,-51589.64945278,0.00019543,3]
[338548358,1726729840032,-2721.89416843,0.00019543,3]
[338548360,1726729840043,-869.84,0.00019543,3]
[338548362,1726729840054,-1739.68,0.00019553,3]
[338548364,1726729840063,-3479.36,0.00019563,3]
[338548366,1726729840072,-306.0,0.0001957,2]
[338548368,1726729840082,-153.0,0.0001957,2]
[338548370,1726729840091,-228.6779883,0.0001957,2]
[338548372,1726729840101,-153.0,0.0001957,2]
[338548374,1726729840110,-500.0,0.00019573,2]
[338548377,1726729840124,-500.0,0.00019573,2]
[338548379,1726729840134,-500.0,0.00019573,2]
[338548381,1726729840143,-500.0,0.00019573,2]
[338548383,1726729840152,-500.0,0.00019573,2]
[338548385,1726729840162,-500.0,0.00019573,2]
[338548387,1726729840171,-500.0,0.00019573,2]
[338548388,1726729840180,-500.0,0.00019573,2]
[338548391,1726729840190,-128502.934634,0.00019578,3]
[338548393,1726729840203,-51639.192933,0.00019578,3]
[338548395,1726729840213,-8165.68250529,0.00019578,3]
[338548397,1726729840222,-55418.52035164,0.0001958,3]
[338548479,1726729842950,-265.33295739,0.00019577,2]
[338548480,1726729842959,-1375.5864799,0.00019577,2]
[338548481,1726729842970,-500.0,0.00019577,2]
[338548482,1726729842979,-446.39630901,0.00019577,2]
[338548483,1726729842990,-53.60369099,0.00019577,2]
[338548484,1726729843000,-1375.5864799,0.00019577,2]
[338548485,1726729843009,-500.0,0.00019577,2]
[338548486,1726729843019,-1223.28038526,0.00019577,2]
[338548487,1726729843042,-152.30609464,0.00019577,2]
[338548488,1726729843051,-500.0,0.00019577,2]
[338548489,1726729843061,-1375.5864799,0.00019577,2]
[338548490,1726729843070,-500.0,0.00019577,2]
[338548491,1726729843079,-1375.5864799,0.00019577,2]
[338548492,1726729843089,-500.0,0.00019577,2]
[338548493,1726729843100,-1375.5864799,0.00019577,2]
[338548494,1726729843109,-500.0,0.00019577,2]
[338548495,1726729843119,-1375.5864799,0.00019577,2]
[338548496,1726729843129,-500.0,0.00019577,2]
[338548497,1726729843138,-1375.5864799,0.00019577,2]
[338548498,1726729843147,-500.0,0.00019577,2]
[338548499,1726729843156,-1375.5864799,0.00019577,2]
[338548500,1726729843166,-500.0,0.00019577,2]
[338548501,1726729843175,-1375.5864799,0.00019577,2]
[338548502,1726729843184,-500.0,0.00019577,2]
[338548503,1726729843193,-1375.5864799,0.00019577,2]
[338548504,1726729843202,-500.0,0.00019577,2]
[338548505,1726729843212,-1375.5864799,0.00019577,2]
[338548506,1726729843220,-500.0,0.00019577,2]
[338548507,1726729843229,-1375.5864799,0.00019577,2]
[338548509,1726729843238,-500.0,0.00019577,2]
[338548511,1726729843248,-1375.5864799,0.00019577,2]
[338548513,1726729843257,-500.0,0.00019577,2]
[338548515,1726729843266,-1375.5864799,0.00019577,2]
[338548517,1726729843276,-500.0,0.00019577,2]
[338548519,1726729843285,-1375.5864799,0.00019577,2]
[338548521,1726729843294,-1375.5864799,0.00019577,2]
[338548523,1726729843304,-500.0,0.00019577,2]
[338548525,1726729843314,-1375.5864799,0.00019577,2]
[338548527,1726729843323,-500.0,0.00019577,2]
[338548529,1726729843333,-1375.5864799,0.00019577,2]
[338548531,1726729843342,-500.0,0.00019577,2]
[338548533,1726729843352,-1375.5864799,0.00019577,2]
[338548534,1726729843364,-500.0,0.00019577,2]
[338548535,1726729843374,-4628.85550386,0.0001958,3]
[338548536,1726729843384,-2721.89416843,0.0001958,3]
[338548537,1726729843393,-153.4482647,0.0001961,2]
[338548538,1726729843404,-154.4499246,0.0001961,2]
[338548539,1726729843414,-153.0,0.0001961,2]
[338548540,1726729843425,-153.0,0.0001961,2]
[338548541,1726729843436,-153.0,0.0001961,2]
[338548542,1726729843446,-153.0,0.0001961,2]
[338548543,1726729843456,-153.0,0.0001961,2]
[338548544,1726729843467,-335.3113171,0.0001961,2]
[338548545,1726729843477,-5744.4366574,0.00019667,2]
[338548546,1726729843487,-500.0,0.00019737,2]
[338548547,1726729843497,-500.0,0.00019761,2]
[338548548,1726729843507,-150.112233,0.000198,2]
[338548549,1726729843517,-2721.89416843,0.00019853,3]
[338548550,1726729843530,-244.20202491,0.00019856,2]
[338548551,1726729843542,-500.0,0.00019856,2]
[338548552,1726729843551,-414.8307984,0.00019856,2]
[338548553,1726729843561,-500.0,0.00019856,2]
[338548554,1726729843570,-500.0,0.00019856,2]
[338548555,1726729843579,-448.88143249,0.00019856,2]
[338548556,1726729843589,-500.0,0.00019856,2]
[338548557,1726729843598,-486.18850994,0.00019856,2]
[338548558,1726729843607,-500.0,0.00019856,2]
[338548559,1726729843617,-500.0,0.00019856,2]
[338548560,1726729843627,-500.0,0.00019856,2]
[338548561,1726729843636,-500.0,0.00019856,2]
[338548562,1726729843645,-500.0,0.00019856,2]
[338548563,1726729843655,-500.0,0.00019856,2]
[338548564,1726729843664,-500.0,0.00019856,2]
[338548565,1726729843675,-5744.4366575,0.00019857,2]
[338548566,1726729843685,-851.95278675,0.00019859,2]
[338548567,1726729843695,-6087.020935,0.00019863,2]
[338548568,1726729843706,-420.0,0.00019878,2]
[338548569,1726729843716,-150.112233,0.000199,2]
[338548571,1726729843935,-10887.5766737,0.00019944,3]
[338548572,1726729843947,-2721.89416843,0.00019949,3]
[338548573,1726729843957,-151.0,0.00019959,2]
[338548574,1726729843966,-151.0,0.00019959,2]
[338548575,1726729843978,-151.0,0.00019959,2]
[338548576,1726729843987,-151.0,0.00019959,2]
[338548577,1726729843996,-264.591703,0.00019959,2]
[338548578,1726729844006,-198.030127,0.00019959,2]
[338548580,1726729844015,-264.591703,0.00019959,2]
[338548582,1726729844024,-253.599694,0.00019959,2]
[338548584,1726729844034,-253.599694,0.00019959,2]
[338548585,1726729844043,-180.203553,0.00019959,2]
[338548587,1726729844052,-180.203553,0.00019959,2]
[338548589,1726729844063,-151.0,0.00019959,2]
[338548591,1726729844072,-151.0,0.00019959,2]
[338548593,1726729844081,-194.620131,0.00019959,2]
[338548595,1726729844091,-194.620131,0.00019959,2]
[338548597,1726729844100,-151.0,0.00019959,2]
[338548599,1726729844110,-151.0,0.00019959,2]
[338548601,1726729844120,-151.0,0.00019964,2]
[338548603,1726729844130,-1111.2553262,0.0001997,3]
[338551126,1726730722914,2142.67817291,0.00018,15]
[338551133,1726730896081,397.86826943,0.000123,2]
[338551139,1726730918467,1078.96323117,0.0002,120]
[338551140,1726730919810,10060.8863083,0.00014,2]
[338551141,1726730920190,1545.08216722,0.0001,2]
[338551146,1726730947128,-1210.87462638,0.000167,2]
[338551147,1726730947150,-166.45209726,0.00016882,2]
[338551148,1726730947172,-300.0,0.00016981,2]
[338551149,1726730947194,-300.0,0.00016981,2]
[338551150,1726730947216,-21174.30243327,0.00016982,2]
[338551168,1726731032127,-336.29366308,0.00016982,2]
[338551169,1726731032140,-3389.40390365,0.00016982,2]
[338551170,1726731032151,-166.45209724,0.00017165,2]
[338551171,1726731032162,-192.88214398,0.00017265,2]
[338551172,1726731032172,-1242.684197,0.00017365,2]
[338551173,1726731032183,-2000.10513104,0.000176,2]
[338551174,1726731032194,-150.0,0.00017617,2]
[338551175,1726731032204,-500.0,0.00017808,2]
[338551176,1726731032215,-250.0,0.00017874,2]
[338551177,1726731032226,-250.0,0.00017923,2]
[338551178,1726731032237,-178.251109,0.00017935,2]
[338551179,1726731032247,-178.251109,0.00017957,2]
[338551180,1726731032258,-250.0,0.00017972,2]
[338551181,1726731032269,-178.251109,0.0001798,2]
[338551182,1726731032281,-300.0,0.00017999,2]
[338551183,1726731032292,-300.0,0.00017999,2]
[338551184,1726731032302,-7850.75170891,0.00018,10]
[338551185,1726731032313,-178.251109,0.00018002,2]
[338551186,1726731032323,-250.0,0.00018021,2]
[338551187,1726731032334,-178.251109,0.00018024,2]
[338551188,1726731032344,-250.0,0.0001807,2]
[338551189,1726731032355,-250.0,0.00018119,2]
[338551190,1726731032365,-250.0,0.00018168,2]
[338551191,1726731032375,-250.0,0.00018217,2]
[338551192,1726731032385,-250.0,0.00018266,2]
[338551193,1726731032395,-250.0,0.00018315,2]
[338551194,1726731032406,-250.0,0.00018364,2]
[338551195,1726731032416,-500.0,0.0001838,2]
[338551196,1726731032427,-250.0,0.00018413,2]
[338551197,1726731032437,-250.0,0.00018462,2]
[338551198,1726731032447,-1000.0,0.000185,2]
[338551199,1726731032458,-250.0,0.00018511,2]
[338551200,1726731032468,-189.0,0.00018542,2]
[338551201,1726731032478,-250.0,0.0001856,2]
[338551202,1726731032489,-250.0,0.00018609,2]
[338551203,1726731032500,-195.612377,0.00018654,2]
[338551204,1726731032511,-250.0,0.00018658,2]
[338551205,1726731032522,-250.0,0.00018707,2]
[338551206,1726731032532,-250.0,0.00018756,2]
[338551207,1726731032543,-250.0,0.00018805,2]
[338551208,1726731032554,-150.0,0.000189,2]
[338551209,1726731032566,-1000.0,0.00019,2]
[338551210,1726731032577,-1000.0,0.00019,19]
[338551211,1726731032589,-2532.03,0.00019158,3]
[338551212,1726731032600,-1266.01,0.00019168,3]
[338551213,1726731032611,-633.01,0.00019168,3]
[338551214,1726731032621,-316.5,0.00019168,3]
[338551215,1726731032631,-158.25,0.00019168,3]
[338551216,1726731032642,-474.78,0.00019168,3]
[338551217,1726731032652,-63436.5246117,0.00019168,3]
[338551218,1726731032662,-1624.35877816,0.00019168,3]
[338551219,1726731032673,-1311.6,0.00019178,14]
[338551220,1726731032684,-1311.6,0.00019178,14]
[338551221,1726731032694,-1311.6,0.00019178,14]
[338551222,1726731032705,-1311.6,0.00019178,14]
[338551223,1726731032716,-1311.6,0.00019178,14]
[338551224,1726731032727,-1311.6,0.00019178,14]
[338551225,1726731032738,-1311.6,0.00019178,14]
[338551226,1726731032749,-1311.6,0.00019178,14]
[338551227,1726731032761,-1311.6,0.00019178,14]
[338551228,1726731032771,-1311.6,0.00019178,14]
[338551229,1726731032782,-1311.6,0.00019178,14]
[338551230,1726731032794,-1311.6,0.00019178,14]
[338551231,1726731032807,-1311.6,0.00019178,14]
[338551232,1726731032819,-1311.6,0.00019178,14]
[338551233,1726731032830,-1311.6,0.00019178,14]
[338551234,1726731032842,-1311.6,0.00019178,14]
[338551235,1726731032853,-1311.6,0.00019178,14]
[338551236,1726731032864,-1311.6,0.00019178,14]
[338551237,1726731032875,-1311.6,0.00019178,14]
[338551238,1726731032885,-1311.6,0.00019178,14]
[338551239,1726731032896,-1311.6,0.00019178,14]
[338551240,1726731032906,-1311.6,0.00019178,14]
[338551241,1726731032917,-1311.6,0.00019178,14]
[338551242,1726731032927,-1311.63154923,0.00019178,14]
[338551243,1726731032937,-153.0,0.00019178,2]
[338551244,1726731032947,-153.0,0.00019178,2]
[338551245,1726731032958,-153.0,0.00019178,2]
[338551246,1726731032969,-153.0,0.00019178,2]
[338551247,1726731032979,-153.0,0.00019178,2]
[338551248,1726731032989,-153.0,0.00019178,2]
[338551249,1726731033004,-153.0,0.00019178,2]
[338551250,1726731033025,-153.0,0.00019178,2]
[338551251,1726731033036,-153.0,0.00019178,2]
[338551252,1726731033048,-153.0,0.00019178,2]
[338551253,1726731033059,-153.0,0.00019178,2]
[338551254,1726731033071,-343.0,0.00019178,2]
[338551255,1726731033084,-343.0,0.00019178,2]
[338551256,1726731033096,-343.0,0.00019178,2]
[338551257,1726731033107,-343.0,0.00019178,2]
[338551258,1726731033117,-343.0,0.00019178,2]
[338551259,1726731033129,-343.0,0.00019178,2]
[338551260,1726731033139,-343.0,0.00019178,2]
[338551261,1726731033150,-343.0,0.00019178,2]
[338551262,1726731033160,-343.0,0.00019178,2]
[338551263,1726731033171,-343.0,0.00019178,2]
[338551264,1726731033182,-343.0,0.00019178,2]
[338551265,1726731033193,-153.0,0.00019178,2]
[338551266,1726731033203,-153.0,0.00019178,2]
[338551267,1726731033214,-153.0,0.00019178,2]
[338551268,1726731033225,-153.0,0.00019178,2]
[338551269,1726731033237,-153.0,0.00019178,2]
[338551270,1726731033247,-153.0,0.00019178,2]
[338551271,1726731033259,-153.0,0.00019178,2]
[338551272,1726731033269,-153.0,0.00019178,2]
[338551273,1726731033280,-153.0,0.00019178,2]
[338551274,1726731033292,-153.0,0.00019178,2]
[338551275,1726731033303,-153.0,0.00019178,2]
[338551276,1726731033314,-153.0,0.00019178,2]
[338551277,1726731033324,-153.0,0.00019178,2]
[338551278,1726731033335,-343.0,0.00019178,2]
[338551279,1726731033346,-343.0,0.00019178,2]
[338551280,1726731033357,-343.0,0.00019178,2]
[338551281,1726731033368,-343.0,0.00019178,2]
[338551282,1726731033380,-343.0,0.00019178,2]
[338551283,1726731033390,-343.0,0.00019178,2]
[338551284,1726731033401,-343.0,0.00019178,2]
[338551285,1726731033412,-343.0,0.00019178,2]
[338551286,1726731033423,-343.0,0.00019178,2]
[338551287,1726731033433,-343.0,0.00019178,2]
[338551288,1726731033444,-343.0,0.00019178,2]
[338551289,1726731033455,-343.0,0.00019178,2]
[338551290,1726731033466,-343.0,0.00019178,2]
[338551291,1726731033477,-343.0,0.00019178,2]
[338551292,1726731033488,-4058.013957,0.00019178,2]
[338551293,1726731033499,-194.890324,0.00019178,2]
[338551294,1726731033513,-874.51,0.000192,2]
[338551295,1726731033524,-150.0,0.00019219,2]
[338551296,1726731033535,-524.0,0.00019219,2]
[338551297,1726731033546,-1216.0,0.00019219,2]
[338551298,1726731033557,-306.0,0.00019342,2]
[338551299,1726731033567,-5744.4366574,0.00019343,2]
[338551300,1726731033578,-1100.44995146,0.00019354,2]
[338551301,1726731033588,-191796.05017656,0.00019445,3]
[338551531,1726731040404,-166.45209724,0.00017799,2]
[338551533,1726731040415,-166.45209724,0.00018434,2]
[338551535,1726731040425,-40692.95266101,0.00019445,3]
[338551539,1726731040448,-21257.09560943,0.00019445,3]
[338551541,1726731040457,-8121.7938908,0.00019445,3]
[338551543,1726731040467,-3248.71755632,0.00019447,3]
[338551545,1726731040477,-316.05954714,0.00019453,2]
[338551547,1726731040486,-500.0,0.00019453,2]
[338551549,1726731040496,-627.28628766,0.00019453,2]
[338551551,1726731040505,-500.0,0.00019453,2]
[338551553,1726731040516,-327.49862793,0.00019453,2]
[338551555,1726731040526,-500.0,0.00019453,2]
[338551557,1726731040536,-500.0,0.00019453,2]
[338551559,1726731040545,-500.0,0.00019453,2]
[338551561,1726731040555,-499.78865517,0.00019453,2]
[338551563,1726731040564,-500.0,0.00019453,2]
[338551565,1726731040574,-500.0,0.00019453,2]
[338551567,1726731040584,-500.0,0.00019453,2]
[338551569,1726731040596,-500.0,0.00019453,2]
[338551571,1726731040605,-500.0,0.00019453,2]
[338551573,1726731040615,-500.0,0.00019453,2]
[338551575,1726731040625,-7593.62587217,0.00019454,5]
[338551577,1726731040634,-1624.35877816,0.00019457,3]
[338551579,1726731040644,-16100.98058503,0.00019467,2]
[338551581,1726731040655,-500.0,0.00019473,2]
[338551583,1726731040665,-500.0,0.00019473,2]
[338551585,1726731040674,-500.0,0.00019473,2]
[338551587,1726731040684,-500.0,0.00019473,2]
[338551589,1726731040694,-500.0,0.00019473,2]
[338551591,1726731040703,-500.0,0.00019475,2]
[338551593,1726731040713,-5744.4366575,0.00019481,2]
[338551595,1726731040722,-1000.0,0.000195,2]
[338551598,1726731040732,-150.0,0.00019509,2]
[338551600,1726731040742,-17867.9465598,0.00019541,3]
[338551602,1726731040753,-151.0,0.00019551,2]
[338551604,1726731040764,-151.0,0.00019551,2]
[338551606,1726731040774,-151.0,0.00019551,2]
[338551608,1726731040784,-151.0,0.00019551,2]
[338551610,1726731040795,-151.0,0.00019551,2]
[338551612,1726731040806,-151.0,0.00019551,2]
[338551614,1726731040817,-151.0,0.00019551,2]
[338551616,1726731040826,-151.0,0.00019551,2]
[338551618,1726731040836,-151.0,0.00019551,2]
[338551620,1726731040846,-167.68725,0.00019551,2]
[338551622,1726731040856,-151.0,0.00019551,2]